Cogmind - Beta 17.1 @@@ ROGUE MODE // 2026.09.06 @ 22:54:51 Player: ATOM Result: Destroyed by D-53 Grenadier with Mini Grenade Launcher Performance ------------- Evolutions (1) 500 Regions Visited (4) 800 Robots Destroyed (82) 410 Value Destroyed (1934) 1934 Prototype IDs (8) 160 Alien Tech Used (0) 0 Bonus (330) 330 TOTAL SCORE: 4134 Bonus ------- High Alert Combat Kills 81 Follower Combat Kills 249 Cogmind --------- Core Integrity 0/400 Matter 257/300 Energy 38/100 System Corruption 1% Temperature Cool (0) Movement Rolling (110) Ox2 Location -9/Mines Parts ------- > --- POWER (1) -------- (None) > --- PROPULSION (3) --- Armored Wheel > --- UTILITY (3) ------ Large Storage Unit Core Shielding Hacking Suite > --- WEAPON (2) ------- Improved Assault Rifle Improved Assault Rifle > --- INVENTORY (15) --- Ion Engine Light Nuclear Core Light Nuclear Core Light Treads Improved Heat Sink Targeting Computer Light Armor Plating Light Armor Plating Advanced Beam Cannon Peak State ------------ > --- POWER ------------ Heavy Ion Engine > --- PROPULSION ------- Light Treads Light Treads Armored Wheel > --- UTILITY ---------- Improved Heat Sink Large Storage Unit Light Armor Plating > --- WEAPON ----------- Improved Assault Rifle Makeshift Axe > --- INVENTORY -------- Ion Engine Improved Ion Engine Light Nuclear Core Light Treads Compact Wheel Armored Wheel Armored Wheel Targeting Computer Light Armor Plating Light Armor Plating Hacking Suite Advanced Beam Cannon Improved Assault Rifle Improved Assault Rifle Improved Assault Rifle [Rating: 22] Favorites ----------- Power Improved Ion Engine Engine Improved Ion Engine Propulsion Light Treads Treads Light Treads Wheel Armored Wheel Utility Large Storage Unit Device Heat Sink Storage Large Storage Unit Hackware Hacking Suite Protection Light Armor Plating Weapon Improved Assault Rifle Energy Gun Medium Laser Energy Cannon Advanced Beam Cannon Ballistic Gun Improved Assault Rifle Launcher Grenade Launcher Slashing Weapon Makeshift Axe Build | -11 -10 -10 -9 -9 ------- Run | Yrd Mat Min Mat Min Slots Evolved 2 | . . . 2 . Power . | . . . . . Propulsion 1 | . . . 1 . Utility 1 | . . . 1 . Weapon . | . . . . . Parts Attached 48 | 6 6 3 30 3 Power 3 | 1 . 1 1 . Engine 3 | 1 . 1 1 . Core . | . . . . . Reactor . | . . . . . Propulsion 16 | 2 1 . 11 2 Treads 12 | 2 1 . 9 . Leg . | . . . . . Wheel 4 | . . . 2 2 Hover . | . . . . . Flight . | . . . . . Utility 15 | 1 2 1 11 . Device 4 | . 1 1 2 . Storage 3 | 1 1 . 1 . Processor . | . . . . . Hackware 1 | . . . 1 . Protection 7 | . . . 7 . Artifact . | . . . . . Weapon 14 | 2 3 1 7 1 Energy Gun 3 | 1 2 . . . Energy Cannon 1 | . . . 1 . Ballistic Gun 6 | 1 . 1 3 1 Ballistic Cannon . | . . . . . Launcher 3 | . 1 . 2 . Special Weapon . | . . . . . Impact Weapon . | . . . . . Slashing Weapon 1 | . . . 1 . Piercing Weapon . | . . . . . Special Melee Weapon . | . . . . . Unidentified Prototypes 2 | . . . 2 . Parts Lost 16 | . 1 . 6 9 Power 2 | . . . 1 1 Propulsion 6 | . . . . 6 Utility 4 | . . . 4 . Weapon 4 | . 1 . 1 2 Highest Loss Streak 9 | . 1 . 2 9 To Critical Strikes . | . . . . . Average Backups 12 | 1 7 14 14 14 Power 1 | . 1 1 2 3 Propulsion 3 | . 1 4 4 4 Utility 4 | . 2 4 4 4 Weapon 2 | . 1 2 3 3 Tool/Special . | . . . . . Unused Backups 13 | . . . 5 8 Power 4 | . . . 1 3 Propulsion 3 | . . . 2 1 Utility 4 | . . . . 4 Weapon 2 | . . . 2 . Tool/Special . | . . . . . Average Slot Usage (%) 98 | . 96 100 99 94 Engine 12 | . 14 14 11 8 Treads 24 | . 27 28 22 18 Wheel 5 | . . . 10 13 Device 9 | . 10 14 7 . Storage 12 | . 14 14 11 11 Hackware 2 | . . . 3 11 Protection 5 | . . . 10 11 Energy Gun 3 | . 13 . . . Ballistic Gun 11 | . 11 14 10 . Launcher 6 | . 3 14 4 9 Slashing Weapon 2 | . . . 5 11 Peak Build Rating 22 | 6 8 11 22 19 Average Rating 13 | 3 6 10 18 18 On Entrance 8 | . 6 7 11 19 Avg Prop Armor Cover (%) 13 | . . . 13 24 Naked Turns . | . . . . . Heaviest Build 38 | 13 33 34 38 32 Greatest Support 40 | 40 40 40 40 40 Greatest Overweight (x) 9 | . 9 . 3 2 Average Overweight (x) . | . . . 1 1 Largest Inventory Capacity 15 | 8 15 15 15 15 Average Capacity 14 | 6 13 15 15 15 Most Carried 15 | 5 10 15 15 15 Average Carried 12 | 1 7 14 14 14 Final Capacity 15 | 8 15 15 15 15 Final Carried 15 | 2 8 15 15 9 Class Distribution -------------------- 59% | Mutant 40% | Scavenger-Mutant Dominant Class ---------------- Mutant | -10/Materials Mutant | -10/Mines Scavenger-Mutant | -9/Materials Scavenger-Mutant | -9/Mines Resources | -11 -10 -10 -9 -9 ----------- Run | Yrd Mat Min Mat Min Matter Collected 1518 | 212 371 83 852 . Remotely . | . . . . . Salvage Created 2429 | . 640 95 1680 14 Parts 172 | . 45 10 117 . Haulers Intercepted 4 | . . . 4 . Recyclers Shooed 1 | . . . 1 . Parts Field Recycled . | . . . . . Retrieved Matter . | . . . . . Parts Self-Destructed . | . . . . . Prevented . | . . . . . Parts Restored . | . . . . . Kills | -11 -10 -10 -9 -9 ------- Run | Yrd Mat Min Mat Min Combat Hostiles Destroyed 60 | . 20 5 34 1 Melee 12 | . . . 11 1 Guns 31 | . 14 1 16 . AOE 17 | . 6 4 7 . Classes Destroyed 10 | . 5 . 4 1 Worker 2 | . . . 2 . Builder 3 | . . . 3 . Hauler 4 | . . . 4 . Recycler 4 | . 1 . 3 . Operator 3 | . 2 . 1 . Watcher 6 | . 3 . 3 . Swarmer 20 | . 9 3 8 . Grunt 32 | . 11 2 19 . Sentry 7 | . . . 7 . Demolisher 1 | . . . . 1 Best Kill Streak 8 | . 6 3 8 1 Combat Bots Only 6 | . 5 3 6 1 Max Kills in Single Turn 3 | . 3 2 2 1 Gunslinging 1 | . . . 1 . Exploded 3 | . 3 2 2 . Melee 1 | . . . 1 1 Uniques/NPCs Destroyed . | . . . . . Combat | -11 -10 -10 -9 -9 -------- Run | Yrd Mat Min Mat Min Hostile Shots Fired 307 | . 77 21 177 32 Missed 81 | . 18 6 48 9 Hits 226 | . 59 15 129 23 Projectile 226 | . 59 15 129 23 AOE 18 | . . . . 18 Critical Strikes 3 | . . . 3 . Damage Taken 3117 | . 541 181 1620 775 Core 512 | . 108 . 224 180 Absorbed by Shields . | . . . . . Redirected to Shielding 40 | . . . 6 34 Regen/Repaired (Parts) 42 | . 42 . . . Core Remaining (%) 78 | 100 . 56 . . Volleys Fired 184 | . 62 9 112 1 Largest 2 | . 2 2 2 2 Hottest 98 | . 70 53 98 46 Shots Fired 282 | . 110 13 157 2 Gun 248 | . 103 9 134 2 Cannon 12 | . . . 12 . Launcher 22 | . 7 4 11 . Special . | . . . . . Kinetic 201 | . 56 9 134 2 Thermal 53 | . 41 . 12 . Explosive 22 | . 7 4 11 . Electromagnetic 6 | . 6 . . . Robot Hit Streak 15 | . 8 2 15 3 Robot Miss Streak 9 | . 3 2 9 . Penetration Max . | . . . . . Secondary Targets 5 | . 2 . 3 . Max Gunslinging Chain 1 | . 1 . 1 . Shots Hit Robots 190 | . 64 5 118 3 Core Hits 114 | . 39 7 67 1 Critical Kills . | . . . . . Critical Parts Destroyed . | . . . . . Critical Strikes 3 | . 1 . 2 . Burn 1 | . 1 . . . Sever 2 | . . . 2 . Melee Attacks 48 | . . . 44 4 Impact . | . . . . . Slashing 48 | . . . 44 4 Piercing . | . . . . . Sneak Attacks 4 | . . . 4 . Combat Hostiles . | . . . . . Follow-up Attacks . | . . . . . Damage Inflicted 5267 | . 1424 229 3549 65 Guns 2235 | . 788 43 1376 28 Cannons 102 | . . . 102 . Explosions 1734 | . 636 186 912 . Melee 1196 | . . . 1159 37 Ramming . | . . . . . Kinetic 1807 | . 360 43 1376 28 Thermal 469 | . 367 . 102 . Explosive 1734 | . 636 186 912 . Electromagnetic 61 | . 61 . . . Impact . | . . . . . Slashing 1196 | . . . 1159 37 Piercing . | . . . . . Highest Corruption 1 | . 1 1 1 1 Average Corruption 1 | . 1 1 1 1 Corruption Purged . | . . . . . Corruption Blocked . | . . . . . Effects 24 | . 4 6 13 1 Message Errors 5 | . 1 1 3 . Matter Fused 4 | . . 2 1 1 Heat Flow Errors 6 | . 3 1 2 . Energy Discharges 1 | . . 1 . . Parts Fused 2 | . . . 2 . Data Loss (minor) 2 | . . 1 1 . Misfires 2 | . . . 2 . Alerts 1 | . . . 1 . Weapon Failures 1 | . . . 1 . Overload Shots . | . . . . . Overflow Damage 158 | . 18 . 140 . Projectiles . | . . . . . Explosions 67 | . 18 . 49 . Melee 91 | . . . 91 . Knockbacks . | . . . . . Impact . | . . . . . Kinetic . | . . . . . Secondary . | . . . . . Self-Inflicted Damage 65 | . . . 65 . Shots 2 | . . . 2 . Rammed . | . . . . . Targets Rammed . | . . . . . Kicked . | . . . . . Crushed . | . . . . . Highest Temperature 280 | . 225 145 280 . Average Temperature 66 | . 67 76 64 . Received Heat Transfer 906 | . 144 81 681 . Siege Activations . | . . . . . Martial Activations . | . . . . . Shielding Activations . | . . . . . Robots Disrupted 1 | . 1 . . . Combat Hostiles 1 | . 1 . . . Robots Corrupted . | . . . . . Combat Hostiles . | . . . . . Parts Fried . | . . . . . Impact Corruptions . | . . . . . Robots Melted . | . . . . . Combat Hostiles . | . . . . . Parts Melted 1 | . 1 . . . Heat Transferred 1273 | . 1088 . 185 . Parts Sabotaged . | . . . . . Parts Stolen . | . . . . . Parts Stripped . | . . . . . Power Chain Reactions . | . . . . . Alert | -11 -10 -10 -9 -9 ------- Run | Yrd Mat Min Mat Min Maximum Alert Level 2 | . 1 . 2 1 Low Security (%) 68 | 100 90 100 41 25 Level 1 15 | . 9 . 25 74 Level 2 15 | . . . 32 . Level 3 . | . . . . . Level 4 . | . . . . . Level 5 . | . . . . . High Security . | . . . . . Max Security . | . . . . . Peak Influence 628 | . 219 93 628 240 Initial 240 | . . 82 . 240 Average 156 | . 80 20 266 213 Influence Increases 2166 | . 601 141 1404 20 Destroy 0b10 Robot/C 1380 | . 400 100 860 20 Destroy 0b10 Robot/NC 120 | . 30 . 90 . Destroy Leader 332 | . 86 20 226 . Allied During Kill 37 | . . . 37 . Successful Hack 62 | . 30 . 32 . Disable Machine 30 | . . . 30 . Destroy Structure 160 | . 40 21 99 . Lose Combat Pursuer 45 | . 15 . 30 . Influence Decreases 2026 | . 390 352 788 496 Entered New Map 505 | . . 129 . 376 Time Decay 1200 | . 380 223 567 30 Lost Part 160 | . 10 . 60 90 Lost Ally 60 | . . . 60 . Purge Threat 101 | . . . 101 . Squads Dispatched 12 | . 5 . 7 . Investigation 7 | . 3 . 4 . Extermination . | . . . . . Reinforcement 3 | . 2 . 1 . Assault 2 | . . . 2 . Garrison . | . . . . . Intercept . | . . . . . Searches Triggered . | . . . . . Construction Impeded . | . . . . . Haulers Reinforced . | . . . . . Active Scanning Responses . | . . . . . Cargo Convoy Interrupts . | . . . . . Stealth | -11 -10 -10 -9 -9 --------- Run | Yrd Mat Min Mat Min Distress Signals 6 | . 1 . 5 . Communications Jammed . | . . . . . Distress Signals . | . . . . . Times Spotted 100 | . 27 7 58 8 Peak Tracking Total 7 | . 5 3 7 7 Tactical Retreats 4 | . 1 . 2 1 Traps | -11 -10 -10 -9 -9 ------- Run | Yrd Mat Min Mat Min Traps Triggered 5 | . 4 . 1 . Indirectly . | . . . . . Trap Hack Attempts . | . . . . . Triggered . | . . . . . Disarmed . | . . . . . Reprogrammed . | . . . . . Reused . | . . . . . Traps Extracted . | . . . . . Installed . | . . . . . Triggered . | . . . . . Machines | -11 -10 -10 -9 -9 ---------- Run | Yrd Mat Min Mat Min Machines Disabled 2 | . . . 2 . Max in Single Turn 1 | . . . 1 . Machines Repaired . | . . . . . Machines Dismantled . | . . . . . Machines Sabotaged . | . . . . . Overloaded Fab Kills . | . . . . . Hacking | -11 -10 -10 -9 -9 --------- Run | Yrd Mat Min Mat Min Machines Accessed 22 | . 9 1 12 . Terminals 14 | . 6 1 7 . Fabricators . | . . . . . Repair Stations 2 | . 1 . 1 . Recycling Units 4 | . 2 . 2 . Scanalyzers 2 | . . . 2 . Garrison Access . | . . . . . Total Hacks 53 | . 22 1 30 . Successful 26 | . 11 1 14 . Failed 27 | . 11 . 16 . Catastrophic 4 | . 2 . 2 . Database Lockouts . | . . . . . Manual . | . . . . . Terminals 38 | . 18 1 19 . Fabricators . | . . . . . Repair Stations 5 | . 2 . 3 . Recycling Units 5 | . 2 . 3 . Scanalyzers 5 | . . . 5 . Garrison Access . | . . . . . Terminal Hacks 16 | . 7 1 8 . Record 1 | . . 1 . . Prototype ID Bank 4 | . 1 . 3 . Branch Access Points 2 | . 1 . 1 . Emergency Access Points 3 | . 2 . 1 . Unreport Threat 2 | . . . 2 . Locate Traps 2 | . 1 . 1 . Recall Investigation 1 | . 1 . . . Hauler Manifests 1 | . 1 . . . Fabricator Hacks . | . . . . . Repair Station Hacks 3 | . 2 . 1 . Scan Component 2 | . 1 . 1 . Repair 1 | . 1 . . . Recycling Unit Hacks 3 | . 2 . 1 . Report Inventory 3 | . 2 . 1 . Scanalyzer 4 | . . . 4 . Retrieve Study 4 | . . . 4 . Garrison Access Hacks . | . . . . . Unauthorized Hacks . | . . . . . Terminals . | . . . . . Fabricators . | . . . . . Repair Stations . | . . . . . Recycling Units . | . . . . . Scanalyzers . | . . . . . Garrison Access . | . . . . . Data Cores Recovered 1 | . . . 1 . Used . | . . . . . Hacking Detections 16 | . 5 1 10 . Full Trace Events 5 | . 1 . 4 . Feedback Events 1 | . . . 1 . Corruption 1 | . . . 1 . Feedback Blocked . | . . . . . Robot Schematics Acquired . | . . . . . Robots Built . | . . . . . Authchips . | . . . . . Time . | . . . . . Total Robot Build Rating . | . . . . . Part Schematics Acquired . | . . . . . Parts Built . | . . . . . Authchips . | . . . . . Time . | . . . . . Total Part Build Rating . | . . . . . Part Studies Acquired 4 | . . . 4 . Parts Repaired 1 | . 1 . . . Time 26 | . 26 . . . Parts Recycled . | . . . . . Recycled Matter . | . . . . . Retrieved Matter . | . . . . . Retrieved Components . | . . . . . Parts Scanalyzed . | . . . . . Part Schematics Acquired . | . . . . . Parts Damaged . | . . . . . Bothacking | -11 -10 -10 -9 -9 ------------ Run | Yrd Mat Min Mat Min Used RIF Installer . | . . . . . Robots Hacked . | . . . . . Non-combat . | . . . . . Combat . | . . . . . Robot Hacks Applied . | . . . . . Relay Couplers Released . | . . . . . Fabnet Peak Effective % . | . . . . . Robots Rewired . | . . . . . Allies Hacked . | . . . . . Hacks Repelled . | . . . . . Allies | -11 -10 -10 -9 -9 -------- Run | Yrd Mat Min Mat Min Total Allies 3 | . . 3 . . Largest Group 3 | . . 3 3 . Highest-Rated Group 40 | . . 40 40 . Highest-Rated Ally 16 | . . 16 16 . Total Orders . | . . . . . Ally Attacks 77 | . . . 77 . Total Damage 797 | . . . 797 . Kills 11 | . . . 11 . Allies Corrupted . | . . . . . Allies Melted . | . . . . . Intel | -11 -10 -10 -9 -9 ------- Run | Yrd Mat Min Mat Min Active Infowar (turns) . | . . . . . Robot Analysis Total . | . . . . . Derelict Logs Recovered 3 | . . 3 . . Drone Launches . | . . . . . Drone Recoveries . | . . . . . Exploration | -11 -10 -10 -9 -9 ------------- Run | Yrd Mat Min Mat Min Turns Passed 5163 | 82 1416 1138 2450 77 Spaces Moved 2720 | 44 740 666 1212 58 Core 2 | 1 1 . . . Treads 2092 | 43 739 666 644 . Legs . | . . . . . Wheels 626 | . . . 568 58 Hover . | . . . . . Flight . | . . . . . Fastest Speed 50 | 50 160 160 110 83 Average Speed 159 | 157 160 160 160 107 Slowest Speed 500 | 160 500 160 200 110 Overloaded Moves . | . . . . . Propulsion Burnouts . | . . . . . Robots Hopped . | . . . . . Potential Cave-ins . | . . . . . Cave-ins Triggered . | . . . . . Exploration Rate (%) 60 | 3 96 99 85 21 Regions Visited 4 Branch Regions 2 Pre-discovered Areas 1 | . . 1 . . Known Exits Taken 2 | . 1 . 1 . Unknown Exits Taken 2 | 1 . 1 . . Scrap Searched 2 | . . 1 . 1 Spaces Dug 4 | . . . 4 . Terrain Destroyed 164 | . 42 24 98 . Melee 4 | . . . 4 . Projectile . | . . . . . AOE 160 | . 42 24 94 . Terrain Rammed . | . . . . . Walls Destroyed . | . . . . . Machines Disabled . | . . . . . Actions | -11 -10 -10 -9 -9 --------- Run | Yrd Mat Min Mat Min Total 3242 | 57 859 726 1531 69 Wait 159 | . 33 36 90 . Move 2716 | 43 739 665 1211 58 Hop . | . . . . . Pick Up 51 | 8 14 10 19 . Fast Attach . | . . . . . Attach 27 | 6 7 . 8 6 Detach . | . . . . . Swap 29 | . 2 3 24 . Drop 28 | . 2 3 23 . Fire 184 | . 62 9 112 1 Melee 48 | . . . 44 4 Ram . | . . . . . Kick . | . . . . . Crush . | . . . . . Escape Stasis . | . . . . . Rewire . | . . . . . Trap . | . . . . . Miscellaneous . | . . . . . Route ------- -11/Scrapyard -10/Materials (discovered 6 exits: *Mat x3 / *Min x2 / [*Sub]) -10/Mines (discovered 4 exits: *Mat x2 / [*Exi] / [*Sub]) -9/Materials (discovered 4 exits: *Mat x3 / *Min) -9/Mines (discovered 1 exit: *Mat) History --------- Turn | Location | Event 40 | -11/Scrapyard | Discovered new exit (range 16) 83 | -11/Scrapyard | Entered Materials 312 | -10/Materials | Build established: Mutant 375 | -10/Materials | Discovered new exit (range 16) 484 | -10/Materials | Discovered new exit (range 8) 497 | -10/Materials | Discovered new exit (range 14) 606 | -10/Materials | Repaired Lgt. Treads 1023 | -10/Materials | Discovered new exit (range 14) 1154 | -10/Materials | Identified exit to Mines 1190 | -10/Materials | Discovered new exit (range 16) 1247 | -10/Materials | Discovered new exit (range 13) 1499 | -10/Materials | Entered Mines 1511 | -10/Mines | Joined a pair of Derelicts in attacking an 0b10 outpost 1598 | -10/Mines | Learned location of 1 exit from Materials 1608 | -10/Mines | Discovered new exit (range 4) 1646 | -10/Mines | Discovered new exit (range 10) 1697 | -10/Mines | Discovered new exit (range 13) 2027 | -10/Mines | A weapon hastily lodged in a ceiling crevice suddenly fell to the ground 2049 | -10/Mines | Learned 2 Materials zone layouts 2247 | -10/Mines | Assisted by bots powering up and referring to "LRC-V3" 2282 | -10/Mines | Deemed a non-threat by the Exiles lab entrance 2282 | -10/Mines | Discovered new exit (range 5) 2637 | -10/Mines | Entered Materials 2637 | -9/Materials | Accompanied by 3 allies 2637 | -9/Materials | Evolved 2 slots: Propulsion x1, Utility x1 2638 | -9/Materials | Identified exit to Materials 3072 | -9/Materials | Build established: Scavenger-Mutant 3233 | -9/Materials | Discovered exit to Materials (range 7) 3452 | -9/Materials | Discovered new exit (range 12) 4197 | -9/Materials | Identified exit to Mines 4637 | -9/Materials | First assault squad dispatched 4687 | -9/Materials | Core integrity fell below 50% 5087 | -9/Materials | Entered Mines 5105 | -9/Mines | Discovered exit to Materials (range 4) 5116 | -9/Mines | Met a Derelict bent on vengeance 5128 | -9/Mines | Assembled infested the area 5153 | -9/Mines | Core integrity fell below 20% 5164 | -9/Mines | Destroyed by D-53 Grenadier with Mini Grenade Launcher Last Messages --------------- 05143_ C-45 Heavy ARC bursts open, deploying its payload. 05143_ D-53 Grenadier unfolds itself. 05144_ Lgt. Treads+ destroyed. 05144_ Imp. Ion Engine+ destroyed. 05144_ Arm. Wheel+ destroyed. 05146_ The unstable cave ceiling collapses. 05148_ Lgt. Treads+ destroyed. 05151_ Mni. Grenade Launcher destroyed. 05152_ System corrupted: Matter fused (-7). 05154_ Arm. Wheel+ destroyed. 05155_ The unstable cave ceiling collapses. 05156_ D-53 Grenadier destroyed. 05158_ The unstable cave ceiling collapses. 05160_ Mak. Axe destroyed. 05161_ The unstable cave ceiling collapses. 05162_ as-81195 destroyed. 05163_ The unstable cave ceiling collapses. 05164_ Com. Wheel+ destroyed. 05164_ Lgt. Treads+ destroyed. Map ----- +----------------------------------------------------+ | ?????????????????????????????????????????????????? | | ?????????????????????????????????????????????????? | | ?????????????????????????????????????????????????? | | ?????????????????????????????????????????????????? | | ?????????????????????????????????????????????????? | | ?????????????????????????????????????????????????? | | ?????????????????????????????????????????????????? | | ????????????????????????????????????????###??????? | | ???????????????????????????????????????# ##?????? | | ??????????????????????????????????????? #?????? | | ????????????????????????####??????????? #?????# | | ????????????????????????? ????????## #????? | | ??????????????????????????# ##?????## #????? | | ??????????????????????????# #???## #?????? | | ??????????????????????????# #### #?????? | | ??????????????????????????# < #?????? | | ?????????????????????????# ##?????? | | ?????????????????????# ## ### ###???????# | | ???????????????????###### ?### #?# #????????## | | ??????????????????## #### ???#= #?# ########## | | ?????????????###### ######?#%###?# | | ????????????## ### #???###### ##### | | ????????????# ## #????????# #??## | | ?????????????# # #????????# #?## | | ?????????????# # d #???????? ## | | ??????######## % @ ###????????##### | | ????# #??????????????# | | ??????######## # #??????????????# | | ????????????# # ##??????????????# | | ????????????## # # #???????????????## | | ?????????????##### #####????????????????## | | ?????????????????#########?????????????????????### | | ?????????????????????????????????????????????????? | | ?????????????????????????????????????????????????? | | ?????????????????????????????????????????????????? | | ?????????????????????????????????????????????????? | | | | | | | | | | | | | | | | | | | | | | | | | | | | | +----------------------------------------------------+ Best States ------------- Heat Dissipation 42 Energy Generation 14 Energy Capacity 280 Matter Stores 300 Matter Capacity 300 Sight Range 16 Terrain Scan Density 10 Armor Coverage 150 Core Shielding 20 Evasion (%) 41 Recoil Reduction 2 Offensive Hacking 10 Item Schematics ----------------- None Robot Schematics ------------------ None Fabricated ------------ Nothing Repaired ---------- Lgt. Treads | 70% | -10/Materials Studied --------- Imp. Ion Engine | -9/Materials | Hacked Com. Wheel | -9/Materials | Hacked Lgt. Treads | -9/Materials | Hacked Arm. Wheel | -9/Materials | Hacked Alien Tech Used ----------------- None Achievements -------------- None Challenges ------------ None Game ------ Seed PiercingSegregatorBrace Manual? 0 Play Time 00:48:28 Cumulative 48.5 hours Start 2026.09.05 @ 22:48:44 End 2026.09.06 @ 22:54:51 Sessions 3 Manual Loads 0 Difficulty Rogue Special Mode None Game No. 69 Rogue 69 Adventurer 0 Explorer 0 Win Type - Total 0 Types 0/0/0/0/0/0/0/0/0/0 Lore% 27 Gallery% 25 Achievement% 22 Wizard Run 0 Options --------- Layout 2 ASCII 0 Keyboard 0 Movement Mouse Keybinds 0 Fullscreen 1 Font 16/X11CapsBold Map View 50x49 Zoom Use 0% Tactical HUD 1 Map Filters NONE Filters NONE Steam SD RUN: 762e5b7d-0833-4a68-8715-2801ba862f33